fUSD/lending_fUSD_20251006
["ID","MTS","AMOUNT","RATE_DAILY","PERIOD"]
[389652098,1759767157954,-370.68887098,0.000176,7]
[389652099,1759767157963,-238.36515828,0.00017604,2]
[389652100,1759767157972,-152.0,0.00017609,11]
[389652101,1759767157982,-365.49973656,0.00017629,30]
[389652102,1759767157992,-5135.97,0.0001763,2]
[389652103,1759767158003,-250.0,0.00017684,2]
[389652104,1759767158012,-403.0,0.000177,5]
[389652105,1759767158022,-254.477645,0.000177,5]
[389652106,1759767158031,-180.867037,0.000177,5]
[389652107,1759767158041,-198.656378,0.000177,5]
[389652108,1759767158051,-337.080449,0.000177,5]
[389652109,1759767158064,-214.404971,0.000177,5]
[389652110,1759767158074,-452.921196,0.000177,5]
[389652111,1759767158083,-337.080449,0.000177,5]
[389652112,1759767158093,-214.404971,0.000177,5]
[389652113,1759767158103,-452.921196,0.000177,5]
[389652114,1759767158113,-254.477637,0.000177,5]
[389652115,1759767158122,-180.867033,0.000177,5]
[389652116,1759767158132,-198.656368,0.000177,5]
[389652117,1759767158141,-151.938276,0.000177,5]
[389652118,1759767158154,-151.723226,0.000177,5]
[389652119,1759767158179,-2717.527174,0.000177,5]
[389652120,1759767158194,-2996.53116788,0.000177,5]
[389652121,1759767158606,-978.9719064,0.00016317,2]
[389652122,1759767158620,-161.30059423,0.00016338,2]
[389652123,1759767158633,-376.12607937,0.00016438,2]
[389652124,1759767158650,-123.87392063,0.00016438,2]
[389652125,1759767158663,-189.75316668,0.00016438,2]
[389652126,1759767158679,-8.65725915,0.00016438,2]
[389652127,1759767158706,-519.42368596,0.00016438,2]
[389652128,1759767160696,-100.36631404,0.00016438,2]
[389652129,1759767160706,-173.91720312,0.000177,5]
[389652130,1759767160717,-180.867033,0.000177,5]
[389652131,1759767160728,-122.41090228,0.000177,5]
[389652132,1759767160742,-98.13638272,0.000177,5]
[389652133,1759767160751,-155.028885,0.000177,5]
[389652134,1759767160761,-172.168852,0.000177,5]
[389652135,1759767160770,-213.39474615,0.000177,5]
[389652136,1759767160781,-636.367284,0.000177,5]
[389652137,1759767164738,-262.03,0.00015607,3]
[389652138,1759767164748,-75.050449,0.00015634,3]
[389652139,1759767164763,-214.404971,0.00015634,3]
[389652140,1759767164773,-376.54458,0.00015634,3]
[389652141,1759767164822,-337.080449,0.00015608,2]
[389652142,1759767164836,-214.404971,0.00015608,2]
[389652143,1759767164846,-452.921196,0.00015608,2]
[389652144,1759767164857,-346.353384,0.00015608,2]
[389652145,1759767164866,-208.45130786,0.00015608,2]
[389652159,1759767369121,-180.28007698,0.00014271,2]
[389652160,1759767369155,-300.0,0.00014999,2]
[389652161,1759767369179,-180.28007698,0.00015,2]
[389652162,1759767369192,-300.0,0.00015,2]
[389652163,1759767369205,-1756.96702004,0.00015,2]
[389652164,1759767369902,-679755.75290298,0.00015,2]
[389652165,1759767380945,161.82299858,0.00014979,2]
[389652166,1759767434739,600.0,5.6e-05,2]
[389652167,1759767434846,500.0,5.6e-05,2]
[389652168,1759767435019,500.0,5.6e-05,2]
[389652169,1759767435136,600.0,5.6e-05,2]
[389652170,1759767435247,500.0,5e-05,2]
[389652171,1759767435393,500.0,5.6e-05,2]
[389652172,1759767435507,600.0,5.6e-05,2]
[389652173,1759767435758,500.0,5.6e-05,2]
[389652174,1759767435887,600.0,5.6e-05,2]
[389652175,1759767436111,500.0,5.6e-05,2]
[389652176,1759767436476,600.0,5.6e-05,2]
[389652177,1759767436594,500.0,5.6e-05,2]
[389652178,1759767436714,600.0,5.6e-05,2]
[389652179,1759767436943,600.0,5.6e-05,2]
[389652180,1759767437040,500.0,5.6e-05,2]
[389652181,1759767437292,600.0,5.6e-05,2]
[389652182,1759767437414,500.0,5.6e-05,2]
[389652183,1759767437542,500.0,5.6e-05,2]
[389652184,1759767437704,500.0,5.6e-05,2]
[389652185,1759767437909,753.93472818,5e-05,2]
[389652186,1759767438005,1100.0,5.6e-05,2]
[389652187,1759767438110,500.0,5.6e-05,2]
[389652188,1759767438211,500.0,5.6e-05,2]
[389652189,1759767438306,500.0,5.6e-05,2]
[389652190,1759767438419,600.0,5.6e-05,2]
[389652191,1759767438523,810.0,5.6e-05,2]
[389652192,1759767438635,500.0,5.6e-05,2]
[389652193,1759767438730,500.0,5.6e-05,2]
[389652194,1759767438823,1100.0,5.6e-05,2]
[389652195,1759767438916,500.51259593,5e-05,2]
[389652196,1759767439007,600.0,5.6e-05,2]
[389652197,1759767439123,500.0,5.6e-05,2]
[389652198,1759767439235,1100.0,5.6e-05,2]
[389652199,1759767439325,600.0,5.6e-05,2]
[389652200,1759767439419,500.0,5e-05,2]
[389652201,1759767439521,500.0,5.6e-05,2]
[389652202,1759767439634,501.45347096,5e-05,2]
[389652203,1759767439731,600.0,5.6e-05,2]
[389652204,1759767439822,1100.0,5.6e-05,2]
[389652205,1759767439916,500.0,5e-05,2]
[389652206,1759767440019,1100.0,5.6e-05,2]
[389652207,1759767440115,600.0,5.6e-05,2]
[389652208,1759767440226,500.0,5e-05,2]
[389652209,1759767440345,1100.0,5.6e-05,2]
[389652210,1759767440442,600.0,5.6e-05,2]
[389652211,1759767440779,500.0,5e-05,2]
[389652212,1759767440868,500.0,5.6e-05,2]
[389652213,1759767440957,1100.0,5.6e-05,2]
[389652214,1759767441051,600.0,5.6e-05,2]
[389652215,1759767441152,500.0,5e-05,2]
[389652216,1759767441250,500.0,5.6e-05,2]
[389652217,1759767441338,600.0,5e-05,2]
[389652218,1759767441451,1100.0,5.6e-05,2]
[389652219,1759767441557,500.0,5e-05,2]
[389652220,1759767441656,500.0,5.6e-05,2]
[389652221,1759767441749,600.0,5e-05,2]
[389652222,1759767441851,1100.0,5.6e-05,2]
[389652223,1759767441945,500.0,5e-05,2]
[389652224,1759767442059,500.0,5.6e-05,2]
[389652225,1759767442150,1100.0,5.6e-05,2]
[389652226,1759767442249,600.0,5e-05,2]
[389652227,1759767442342,500.0,5e-05,2]
[389652228,1759767442448,500.0,5.6e-05,2]
[389652229,1759767442742,600.0,5e-05,2]
[389652230,1759767442834,1100.0,5.6e-05,2]
[389652231,1759767442931,500.0,5e-05,2]
[389652232,1759767443023,500.0,5.6e-05,2]
[389652233,1759767443111,600.0,5e-05,2]
[389652234,1759767443203,1100.0,5.6e-05,2]
[389652235,1759767443300,500.0,5e-05,2]
[389652236,1759767443407,500.0,5.6e-05,2]
[389652237,1759767443534,600.0,5e-05,2]
[389652238,1759767443650,1100.0,5.6e-05,2]
[389652239,1759767443750,500.0,5.6e-05,2]
[389652240,1759767443852,500.0,5e-05,2]
[389652241,1759767443947,600.0,5e-05,2]
[389652242,1759767444077,1100.0,5.6e-05,2]
[389652243,1759767444203,500.0,5.6e-05,2]
[389652244,1759767444313,500.0,5.6e-05,2]
[389652245,1759767444423,600.0,5e-05,2]
[389652246,1759767444524,562.26191586,5e-05,2]
[389652247,1759767444620,1100.0,5e-05,2]
[389652248,1759767444716,500.0,5.6e-05,2]
[389652249,1759767444830,600.0,5e-05,2]
[389652250,1759767444930,500.0,5.6e-05,2]
[389652251,1759767445026,500.0,5.6e-05,2]
[389652252,1759767445117,1100.0,5e-05,2]
[389652253,1759767445220,725.28384163,5.6e-05,2]
[389652254,1759767445336,600.0,5e-05,2]
[389652255,1759767445425,500.0,5.6e-05,2]
[389652256,1759767445516,500.0,5.6e-05,2]
[389652257,1759767445621,1100.0,5e-05,2]
[389652258,1759767445816,600.0,5e-05,2]
[389652259,1759767445910,1100.0,5e-05,2]
[389652260,1759767446004,500.0,5.6e-05,2]
[389652261,1759767446103,500.0,5.6e-05,2]
[389652262,1759767446207,500.0,5.6e-05,2]
[389652263,1759767446302,1100.0,5e-05,2]
[389652264,1759767446397,600.0,5e-05,2]
[389652265,1759767446483,500.0,4e-05,2]
[389652266,1759767446569,1100.0,5e-05,2]
[389652267,1759767446656,500.0,5.6e-05,2]
[389652268,1759767446744,600.0,5e-05,2]
[389652269,1759767446839,1100.0,5e-05,2]
[389652270,1759767446923,500.0,5.6e-05,2]
[389652271,1759767447013,800.0,5e-05,2]
[389652272,1759767447108,1100.0,5e-05,2]
[389652273,1759767447205,500.0,5.6e-05,2]
[389652274,1759767447296,1100.0,5e-05,2]
[389652275,1759767447390,500.0,5.6e-05,2]
[389652276,1759767447485,500.0,5.6e-05,2]
[389652277,1759767447572,500.0,5.6e-05,2]
[389652278,1759767447669,1100.0,5e-05,2]
[389652279,1759767447760,500.0,5e-05,2]
[389652280,1759767447858,500.0,5.6e-05,2]
[389652281,1759767447958,500.0,5.6e-05,2]
[389652282,1759767448052,500.0,5.6e-05,2]
[389652283,1759767448157,1100.0,5e-05,2]
[389652286,1759767448260,500.0,5e-05,2]
[389652287,1759767448370,500.0,4e-05,2]
[389652288,1759767448466,500.0,5.6e-05,2]
[389652289,1759767448559,1100.0,5e-05,2]
[389652290,1759767448652,500.0,5e-05,2]
[389652291,1759767448744,500.0,4e-05,2]
[389652292,1759767448840,500.0,4e-05,2]
[389652293,1759767448945,1800.0,5e-05,2]
[389652294,1759767449038,500.0,5e-05,2]
[389652295,1759767449132,167.76437028,5.6e-05,2]
[389652296,1759767449458,500.0,4e-05,2]
[389652297,1759767449579,500.0,4e-05,2]
[389652298,1759767449705,500.0,5e-05,2]
[389652299,1759767449825,500.0,4e-05,2]
[389652300,1759767449921,500.0,4e-05,2]
[389652301,1759767450028,500.0,5e-05,2]
[389652302,1759767450123,500.0,4e-05,2]
[389652303,1759767450229,500.0,5e-05,2]
[389652304,1759767450327,500.0,4e-05,2]
[389652305,1759767450427,800.0,5e-05,2]
[389652306,1759767450528,500.0,4e-05,2]
[389652307,1759767450638,500.0,4e-05,2]
[389652308,1759767451023,500.0,4e-05,2]
[389652309,1759767451130,500.0,4e-05,2]
[389652310,1759767451245,500.0,4e-05,2]
[389652311,1759767451346,500.0,5.6e-05,2]
[389652312,1759767451444,500.0,5.6e-05,2]
[389652313,1759767451533,600.0,4e-05,2]
[389652314,1759767451644,500.0,4e-05,2]
[389652315,1759767451762,500.0,5.6e-05,2]
[389652316,1759767451853,500.0,5.6e-05,2]
[389652317,1759767451960,500.0,5.6e-05,2]
[389652318,1759767452052,500.0,4e-05,2]
[389652319,1759767452311,500.0,5.6e-05,2]
[389652320,1759767452697,500.0,5.6e-05,2]
[389652321,1759767453075,500.0,5.6e-05,2]
[389652322,1759767453455,500.0,4e-05,2]
[389652323,1759767453808,500.0,4e-05,2]
[389652324,1759767454147,500.0,4e-05,2]
[389652325,1759767454548,500.0,4e-05,2]
[389652329,1759767533523,-153.986,0.000146,2]
[389652330,1759767533552,-500.0,0.00014973,2]
[389652331,1759767533581,-500.0,0.00014973,2]
[389652332,1759767533610,-500.0,0.00014973,2]
[389652333,1759767533638,-195.0,0.00014986,2]
[389652334,1759767533665,-400.10488,0.00015,2]
[389652335,1759767533692,-250.0,0.0001504,2]
[389652336,1759767533722,-300.0,0.0001507,2]
[389652337,1759767533941,-153.986,0.00015071,2]
[389652338,1759767533954,-500.0,0.00015071,2]
[389652339,1759767533965,-500.0,0.00015071,2]
[389652340,1759767533977,-500.0,0.00015071,2]
[389652341,1759767533989,-195.0,0.00015071,2]
[389652342,1759767534001,-400.10488,0.00015071,2]
[389652343,1759767534022,-250.0,0.00015071,2]
[389652344,1759767534041,-300.0,0.00015071,2]
[389652345,1759767534053,-6439.20077979,0.00015071,2]
[389652357,1759767904289,415.87,0.0001201,2]
[389652358,1759767936692,228.38462607,9e-05,2]
[389652366,1759768017136,-299.91706588,0.00014955,2]
[389652367,1759768017159,-126.73890261,0.00014999,2]
[389652378,1759768122351,328.64718383,0.0001,2]
[389652379,1759768144300,-249.89512,0.00013,15]
[389652380,1759768151646,-195.0,0.00013,15]
[389652381,1759768159179,-400.10488,0.00013,15]
[389652382,1759768166700,-250.0,0.00013,15]
[389652383,1759768173859,-300.0,0.00013,15]
[389652384,1759768179487,-6965.44964325,0.00013,15]
[389652385,1759768179515,-1205.25009642,0.0001421,7]
[389652386,1759768179543,-3715.77974059,0.000149,2]
[389652387,1759768179570,-227.79228568,0.00014914,2]
[389652388,1759768179598,-4405.30768955,0.00014955,2]
[389652389,1759768179623,-500.0,0.00014973,2]
[389652390,1759768179649,-505.04301252,0.00014973,2]
[389652391,1759768179687,-151.0,0.00014997,2]
[389652392,1759768179717,-150.0,0.00014999,2]
[389652393,1759768179743,-500.0,0.00014999,2]
[389652394,1759768179769,-500.0,0.00014999,2]
[389652395,1759768179798,-500.0,0.00014999,2]
[389652396,1759768179826,-151.29731946,0.00014999,2]
[389652397,1759768179853,-500.0,0.00014999,2]
[389652398,1759768179880,-500.0,0.00014999,2]
[389652399,1759768179908,-500.0,0.00014999,2]
[389652400,1759768179936,-500.0,0.00014999,2]
[389652401,1759768179963,-500.0,0.00014999,2]
[389652402,1759768179989,-332231.48504792,0.00015,2]
[389652403,1759768180015,-13543.84664289,0.00015,10]
[389652404,1759768180040,-831952.61923932,0.00015,2]
[389652405,1759768219306,-14806.3967458,0.00014991,2]
[389652406,1759768219335,-250.0,0.00014996,2]
[389652407,1759768219364,-1200.0,0.00014999,2]
[389652408,1759768219393,-155.0,0.00015,3]
[389652409,1759768219424,-21976.91978747,0.00015,2]
[389652423,1759768231754,-2011.9358206,0.00015014,2]
[389652424,1759768231764,-9824.32,0.00015017,2]
[389652425,1759768231774,-3016.13368149,0.00015071,2]
[389652426,1759768231809,-1337.429378,0.00015071,2]
[389652427,1759768231821,-7123.31986702,0.00015071,2]
[389652428,1759768231830,-158.94,0.00015079,2]
[389652429,1759768231840,-733.59,0.00015123,2]
[389652430,1759768231850,-1600.0,0.00015138,2]
[389652431,1759768231859,-168.0,0.00015317,2]
[389652432,1759768231868,-1626.07522742,0.00015319,2]
[389652433,1759768231899,-485.87772551,0.00015319,2]
[389652434,1759768231933,-19.05704707,0.00015319,2]
[389652435,1759768231942,-161.82299857,0.00015449,2]
[389652436,1759768231952,-389.20995436,0.00015456,2]
[389652437,1759768232028,-3326.56978622,0.00015456,2]
[389652438,1759768232038,-4405.30768951,0.00015504,2]
[389652439,1759768232047,-500.0,0.00015521,2]
[389652440,1759768232056,-88.85995665,0.00015521,2]
[389652441,1759768232068,-79.14004335,0.00015521,2]
[389652442,1759768232077,-500.0,0.00015539,2]
[389652443,1759768232088,-500.0,0.00015539,2]
[389652444,1759768232097,-500.0,0.00015539,2]
[389652445,1759768232107,-151.0,0.00015539,2]
[389652446,1759768232116,-184.39222873,0.00015539,2]
[389652447,1759768232125,-151.0,0.00015549,2]
[389652448,1759768232135,-514.0299938,0.00015549,2]
[389652450,1759768232144,-1349.70926356,0.00015549,2]
[389652452,1759768232155,-650.29073644,0.00015549,2]
[389652454,1759768232164,-161.15350971,0.00015549,2]
[389652456,1759768232173,-7965.41053268,0.00015549,2]
[389652458,1759768232182,-2000.0,0.00015549,2]
[389652460,1759768232192,-2000.0,0.00015549,2]
[389652462,1759768232201,-683.83929278,0.00015549,2]
[389652464,1759768232210,-601.3376128,0.00015549,2]
[389652466,1759768232219,-5455.0,0.00015549,2]
[389652468,1759768232228,-151.0,0.00015549,2]
[389652470,1759768232238,-231.28369723,0.00015549,2]
[389652472,1759768232248,-151.0,0.00015549,2]
[389652474,1759768232257,-322.6107,0.00015549,2]
[389652476,1759768232267,-813.21,0.00015549,2]
[389652478,1759768232276,-370.68887098,0.00015599,2]
[389652480,1759768232286,-8260.13072239,0.00015604,2]
[389652482,1759768232295,-300.38,0.00015607,2]
[389652484,1759768232305,-302.98,0.00015607,2]
[389652486,1759768232314,-300.47,0.00015609,2]
[389652488,1759768232324,-305.25,0.00015622,2]
[389652490,1759768232333,-2613.1171964,0.00015659,2]
[389652505,1759768232557,-568.63769063,0.00015659,2]
[389652506,1759768232583,-782.59605814,0.00015659,2]
[389652507,1759768232595,-2300.0,0.00015659,2]
[389652508,1759768232606,-268.3990187,0.00015659,2]
[389652509,1759768232617,-795.72359169,0.00015659,2]
[389652512,1759768232655,-342.21678744,0.00015659,2]
[389652514,1759768232664,-168.0,0.00015666,2]
[389652516,1759768232674,-168.0,0.00015688,2]
[389652518,1759768232683,-832.0,0.00015704,2]
[389652520,1759768232693,-302.34,0.00015709,2]
[389652522,1759768232703,-168.0,0.00015783,2]
[389652525,1759768232712,-171.70131482,0.000158,2]
[389652527,1759768232722,-171.70131481,0.000158,2]
[389652529,1759768232731,-813.21,0.00015823,2]
[389652531,1759768232741,-168.0,0.00015845,2]
[389652533,1759768232750,-217.43588454,0.00015918,2]
[389652534,1759768232759,-217.43588454,0.00015973,2]
[389652537,1759768232769,-168.0,0.00015976,2]
[389652538,1759768232779,-1000.0,0.00016,2]
[389652540,1759768232788,-1000.0,0.00016,2]
[389652542,1759768232797,-1000.0,0.00016,2]
[389652544,1759768232806,-1000.0,0.00016,2]
[389652546,1759768232816,-1000.0,0.00016,2]
[389652549,1759768232826,-3715.77974058,0.00016011,2]
[389652551,1759768232834,-152.0,0.00016037,3]
[389652553,1759768232845,-168.0,0.00016046,2]
[389652555,1759768232855,-4405.30768951,0.00016054,2]
[389652579,1759768233064,-217.43588454,0.00016055,2]
[389652581,1759768233081,-151.0,0.00016097,2]
[389652583,1759768233092,-151.0,0.00016097,2]
[389652585,1759768233102,-151.0,0.00016097,2]
[389652587,1759768233112,-813.21,0.00016097,2]
[389652589,1759768233121,-200.0,0.000161,2]
[389652591,1759768233131,-217.43588454,0.0001611,2]
[389652592,1759768233140,-303.54,0.0001611,2]
[389652594,1759768233150,-402.64,0.00016147,2]
[389652596,1759768233159,-301.56,0.00016147,2]
[389652598,1759768233169,-217.43588454,0.00016164,2]
[389652599,1759768233178,-168.0,0.00016198,2]
[389652600,1759768233188,-150.0,0.000162,2]
[389652601,1759768233197,-832.0,0.00016215,2]
[389652602,1759768233207,-217.43588454,0.00016247,2]
[389652603,1759768233216,-835.83498796,0.00016271,2]
[389652604,1759768233226,-532.63000001,0.00016272,2]
[389652605,1759768233235,-289.91451273,0.00016274,2]
[389652606,1759768233244,-835.83498796,0.00016281,2]
[389652607,1759768233254,-152.0,0.00016285,4]
[389652608,1759768233263,-8006.16146294,0.00016291,2]
[389652609,1759768233273,-1583.1157,0.000163,2]
[389652610,1759768233282,-1000.0,0.000163,2]
[389652611,1759768233291,-217.43588454,0.00016301,2]
[389652612,1759768233301,-835.83498796,0.00016308,2]
[389652613,1759768233310,-8006.16146294,0.00016314,2]
[389652614,1759768233319,-158.5479524,0.0001633,2]
[389652615,1759768233329,-854.3025,0.00016338,2]
[389652616,1759768233339,-5000.0,0.00016338,2]
[389652617,1759768233349,-8006.16146294,0.00016338,2]
[389652618,1759768233362,-532.63000001,0.00016339,2]
[389652619,1759768233371,-835.83498796,0.00016348,2]
[389652620,1759768233381,-217.43588454,0.00016356,2]
[389652621,1759768233391,-532.63000001,0.00016359,2]
[389652622,1759768233403,-8006.16146294,0.00016361,2]
[389652623,1759768233412,-7705.77883691,0.00016364,2]
[389652624,1759768237611,-1273.48451329,0.00016338,2]
[389652625,1759768237626,-768.05860074,0.00016338,2]
[389652626,1759768237638,-773.21724996,0.00016338,2]
[389652627,1759768237667,-2185.23963601,0.00016338,2]
[389652628,1759768237677,-300.38262603,0.00016364,2]
[389652629,1759768237688,-835.83498796,0.00016365,2]
[389652630,1759768237697,-532.63000001,0.00016369,2]
[389652631,1759768237707,-813.21,0.00016371,2]
[389652632,1759768237717,-532.63000001,0.00016385,2]
[389652633,1759768237726,-150.0,0.000164,120]
[389652634,1759768237737,-832.0,0.00016413,2]
[389652635,1759768237747,-815.0,0.00016419,2]
[389652636,1759768237757,-1265.0,0.00016419,2]
[389652637,1759768237770,-3401.0,0.00016419,2]
[389652638,1759768237781,-788.0,0.00016419,2]
[389652639,1759768237791,-6239.0,0.00016419,2]
[389652640,1759768237800,-4117.0,0.00016419,2]
[389652641,1759768237810,-1181.0,0.00016419,2]
[389652642,1759768237820,-182.87383399,0.00016428,2]
[389652643,1759768237831,-1809.998,0.00016428,2]
[389652644,1759768237843,-181.168478,0.0001643,5]
[389652645,1759768237854,-832.0,0.00016433,2]
[389652646,1759768237863,-45419.66511722,0.00016435,2]
[389652647,1759768237872,-1000.0,0.00016437,2]
[389652648,1759768237882,-500.0,0.00016437,2]
[389652649,1759768237892,-1000.0,0.00016437,2]
[389652650,1759768237902,-832.0,0.00016437,2]
[389652651,1759768237911,-500.0,0.00016438,2]
[389652652,1759768237921,-500.0,0.00016438,2]
[389652653,1759768237931,-500.0,0.00016438,2]
[389652654,1759768237940,-500.0,0.00016438,2]
[389652655,1759768237950,-500.0,0.00016438,2]
[389652656,1759768237960,-582.48469641,0.00016438,2]
[389652657,1759768237970,-181.168478,0.00016438,2]
[389652658,1759768237981,-235.07510693,0.00016438,2]
[389652659,1759768237991,-518.77834495,0.00016438,2]
[389652660,1759768238004,-1574.42,0.00016438,2]
[389652661,1759768238014,-1574.42,0.00016438,2]
[389652662,1759768238024,-1574.42,0.00016438,2]
[389652663,1759768238034,-1574.42,0.00016438,2]
[389652664,1759768238044,-1574.42,0.00016438,2]
[389652665,1759768238054,-1574.42,0.00016438,2]
[389652667,1759768238064,-1574.42,0.00016438,2]
[389652668,1759768238074,-1574.42,0.00016438,2]
[389652670,1759768238084,-1574.42,0.00016438,2]
[389652672,1759768238095,-1574.42,0.00016438,2]
[389652674,1759768238105,-1574.42,0.00016438,2]
[389652676,1759768238115,-1574.42,0.00016438,2]
[389652677,1759768238125,-1574.42,0.00016438,2]
[389652678,1759768238135,-1574.42,0.00016438,2]
[389652679,1759768238146,-1574.42,0.00016438,2]
[389652680,1759768238156,-1574.42,0.00016438,2]
[389652681,1759768238166,-1574.42,0.00016438,2]
[389652682,1759768238176,-1574.42,0.00016438,2]
[389652683,1759768238186,-1574.42,0.00016438,2]
[389652684,1759768238196,-1574.42,0.00016438,2]
[389652685,1759768238205,-1574.42,0.00016438,2]
[389652686,1759768238216,-1574.42,0.00016438,2]
[389652687,1759768238230,-1574.42,0.00016438,2]
[389652688,1759768238240,-1574.51612059,0.00016438,2]
[389652689,1759768238250,-500.0,0.00016438,2]
[389652690,1759768238260,-500.0,0.00016438,2]
[389652691,1759768238271,-500.0,0.00016438,2]
[389652692,1759768238280,-506.63629303,0.00016438,2]
[389652693,1759768238299,-500.0,0.00016438,2]
[389652694,1759768238309,-500.0,0.00016438,2]
[389652695,1759768238319,-500.0,0.00016438,2]
[389652696,1759768238328,-500.0,0.00016438,2]
[389652697,1759768238338,-500.0,0.00016438,2]
[389652698,1759768238350,-501.99529317,0.00016438,2]
[389652699,1759768238363,-500.0,0.00016438,2]
[389652700,1759768238373,-4256.44,0.00016438,2]
[389652701,1759768238383,-4256.44,0.00016438,2]
[389652702,1759768238394,-4256.44,0.00016438,2]
[389652703,1759768238405,-4256.44,0.00016438,2]
[389652704,1759768238414,-4256.44,0.00016438,2]
[389652705,1759768238425,-4256.44,0.00016438,2]
[389652706,1759768238436,-4256.44,0.00016438,2]
[389652707,1759768238447,-4256.44,0.00016438,2]
[389652708,1759768238457,-4256.44,0.00016438,2]
[389652709,1759768238468,-4256.44,0.00016438,2]
[389652710,1759768238480,-4256.44,0.00016438,2]
[389652711,1759768238490,-4256.44,0.00016438,2]
[389652712,1759768238500,-4256.44,0.00016438,2]
[389652713,1759768238510,-4256.44,0.00016438,2]
[389652714,1759768238521,-4256.44,0.00016438,2]
[389652715,1759768238532,-4256.44,0.00016438,2]
[389652716,1759768238542,-4256.44,0.00016438,2]
[389652717,1759768238552,-4256.44,0.00016438,2]
[389652718,1759768238562,-4256.44,0.00016438,2]
[389652719,1759768238572,-4256.44,0.00016438,2]
[389652720,1759768238583,-4256.44,0.00016438,2]
[389652721,1759768238594,-4256.44,0.00016438,2]
[389652722,1759768238605,-4256.44,0.00016438,2]
[389652723,1759768238615,-4256.5605768,0.00016438,2]
[389652724,1759768238625,-3637.98,0.00016438,2]
[389652725,1759768238635,-3637.98,0.00016438,2]
[389652726,1759768238645,-3637.98,0.00016438,2]
[389652727,1759768238655,-3637.98,0.00016438,2]
[389652728,1759768238665,-3637.98,0.00016438,2]
[389652729,1759768238675,-3637.98,0.00016438,2]
[389652730,1759768238686,-3637.98,0.00016438,2]
[389652731,1759768238697,-3637.98,0.00016438,2]
[389652732,1759768238706,-3637.98,0.00016438,2]
[389652733,1759768238716,-3637.98,0.00016438,2]
[389652734,1759768238726,-3637.98,0.00016438,2]
[389652735,1759768238736,-3637.98,0.00016438,2]
[389652736,1759768238745,-3637.98,0.00016438,2]
[389652737,1759768238755,-3637.98,0.00016438,2]
[389652738,1759768238765,-3637.98,0.00016438,2]
[389652739,1759768238775,-3637.98,0.00016438,2]
[389652740,1759768238786,-3637.98,0.00016438,2]
[389652741,1759768238796,-3637.98,0.00016438,2]
[389652742,1759768238805,-3637.98,0.00016438,2]
[389652743,1759768238815,-3637.98,0.00016438,2]
[389652744,1759768238824,-3637.98,0.00016438,2]
[389652745,1759768238834,-3637.98,0.00016438,2]
[389652746,1759768238843,-3637.98,0.00016438,2]
[389652747,1759768238853,-3638.04,0.00016438,2]
[389652748,1759768238862,-626.82840256,0.00016438,2]
[389652749,1759768238872,-500.0,0.00016438,2]
[389652750,1759768238882,-500.0,0.00016438,2]
[389652751,1759768238891,-570.285,0.00016438,2]
[389652752,1759768238901,-500.0,0.00016438,2]